[Event "Titled Tuesday Blitz January 11 2022"]
[White "FGHSMN"]
[Black "Filipets, Egor"]
[BlackFideId "13503928"]
[WhiteElo "2749"]
[BlackElo "2211"]
[Result "1-0"]
[Round "08"]
[TimeControl "180+1"]
[Date "2022.01.11"]
[WhiteClock "0:01:51"]
[BlackClock "0:00:08"]

1. b3 {[%clk 0:02:57]}  a5 {[%clk 0:02:53]} 2. Bb2 {[%clk 0:02:57]}  a4 {[%clk 0:02:54]} 3. b4 {[%clk 0:02:57]}  d5 {[%clk 0:02:52]} 4. a3 {[%clk 0:02:57]}  Nf6 {[%clk 0:02:50]} 5. Nf3 {[%clk 0:02:57]}  Bf5 {[%clk 0:02:47]} 6. e3 {[%clk 0:02:57]}  e6 {[%clk 0:02:45]} 7. c4 {[%clk 0:02:56]}  c6 {[%clk 0:02:43]} 8. Nc3 {[%clk 0:02:56]}  dxc4 {[%clk 0:02:32]} 9. Bxc4 {[%clk 0:02:55]}  b5 {[%clk 0:02:32]} 10. Be2 {[%clk 0:02:54]}  Bd3 {[%clk 0:02:31]} 11. Ne5 {[%clk 0:02:53]}  Bxe2 {[%clk 0:02:29]} 12. Qxe2 {[%clk 0:02:54]}  Bd6 {[%clk 0:02:12]} 13. d4 {[%clk 0:02:50]}  O-O {[%clk 0:02:08]} 14. O-O {[%clk 0:02:50]}  Nd5 {[%clk 0:02:06]} 15. Ne4 {[%clk 0:02:49]}  Bxe5 {[%clk 0:02:01]} 16. dxe5 {[%clk 0:02:50]}  Nd7 {[%clk 0:02:01]} 17. Rac1 {[%clk 0:02:48]}  Qc7 {[%clk 0:01:47]} 18. Nd6 {[%clk 0:02:47]}  Qb6 {[%clk 0:01:42]} 19. Bd4 {[%clk 0:02:46]}  Qa6 {[%clk 0:01:41]} 20. f4 {[%clk 0:02:42]}  f5 {[%clk 0:01:36]} 21. exf6 {[%clk 0:02:39]}  N5xf6 {[%clk 0:01:22]} 22. e4 {[%clk 0:02:39]}  h6 {[%clk 0:00:53]} 23. Qa2 {[%clk 0:02:39]}  Rae8 {[%clk 0:00:49]} 24. Nxe8 {[%clk 0:02:38]}  Rxe8 {[%clk 0:00:50]} 25. Rfe1 {[%clk 0:02:36]}  Kh8 {[%clk 0:00:48]} 26. Qc2 {[%clk 0:02:34]}  Rc8 {[%clk 0:00:45]} 27. Qc3 {[%clk 0:02:34]}  Kh7 {[%clk 0:00:44]} 28. f5 {[%clk 0:02:34]}  exf5 {[%clk 0:00:43]} 29. exf5 {[%clk 0:02:34]}  Nd5 {[%clk 0:00:42]} 30. Qg3 {[%clk 0:02:33]}  N7f6 {[%clk 0:00:42]} 31. Qg6+ {[%clk 0:02:32]}  Kh8 {[%clk 0:00:41]} 32. Re6 {[%clk 0:02:27]}  Qb7 {[%clk 0:00:38]} 33. Bxf6 {[%clk 0:02:25]}  Nxf6 {[%clk 0:00:37]} 34. Rxf6 {[%clk 0:02:20]}  gxf6 {[%clk 0:00:37]} 35. Qxh6+ {[%clk 0:02:20]}  Qh7 {[%clk 0:00:32]} 36. Qxf6+ {[%clk 0:02:20]}  Qg7 {[%clk 0:00:33]} 37. Qxg7+ {[%clk 0:02:11]}  Kxg7 {[%clk 0:00:34]} 38. g4 {[%clk 0:02:11]}  Rd8 {[%clk 0:00:29]} 39. Rxc6 {[%clk 0:02:08]}  Rd3 {[%clk 0:00:30]} 40. g5 {[%clk 0:02:09]}  Rxa3 {[%clk 0:00:30]} 41. Rc7+ {[%clk 0:02:09]}  Kf8 {[%clk 0:00:29]} 42. f6 {[%clk 0:02:02]}  Rf3 {[%clk 0:00:25]} 43. Kg2 {[%clk 0:02:02]}  Rf5 {[%clk 0:00:25]} 44. h4 {[%clk 0:02:01]}  a3 {[%clk 0:00:25]} 45. Ra7 {[%clk 0:02:01]}  Rf4 {[%clk 0:00:25]} 46. Kg3 {[%clk 0:02:00]}  Rxb4 {[%clk 0:00:25]} 47. g6 {[%clk 0:01:59]}  Ra4 {[%clk 0:00:19]} 48. Rh7 {[%clk 0:01:59]}  Ke8 {[%clk 0:00:18]} 49. Rh8+ {[%clk 0:01:57]}  Kd7 {[%clk 0:00:18]} 50. f7 {[%clk 0:01:57]}  a2 {[%clk 0:00:17]} 51. f8=Q {[%clk 0:01:56]}  a1=Q {[%clk 0:00:17]} 52. Qc8+ {[%clk 0:01:54]}  Kd6 {[%clk 0:00:13]} 53. Rd8+ {[%clk 0:01:53]}  Ke5 {[%clk 0:00:12]} 54. Qc5+ {[%clk 0:01:52]}  Ke4 {[%clk 0:00:09]} 55. Qd5+ {[%clk 0:01:51]}  Ke3 {[%clk 0:00:08]} 56. Qd3# {[%clk 0:01:51]} 1-0


[Site "https://www.chess.com"]

[Event "Titled Tuesday Blitz January 11 2022"]
[White "Hess, Robert"]
[Black "Tregubov, Pavel V."]
[WhiteFideId "2022036"]
[BlackFideId "4115341"]
[WhiteElo "2557"]
[BlackElo "2341"]
[Result "1-0"]
[Round "08"]
[TimeControl "180+1"]
[Date "2022.01.11"]
[WhiteClock "0:00:09"]
[BlackClock "0:00:31"]

1. b3 {[%clk 0:02:39]}  d5 {[%clk 0:02:57]} 2. Bb2 {[%clk 0:02:39]}  Nf6 {[%clk 0:02:57]} 3. e3 {[%clk 0:02:36]}  g6 {[%clk 0:02:57]} 4. Nf3 {[%clk 0:02:37]}  Bg7 {[%clk 0:02:58]} 5. Be2 {[%clk 0:02:37]}  O-O {[%clk 0:02:58]} 6. O-O {[%clk 0:02:38]}  c5 {[%clk 0:02:58]} 7. c4 {[%clk 0:02:37]}  d4 {[%clk 0:02:56]} 8. exd4 {[%clk 0:02:38]}  Nh5 {[%clk 0:02:56]} 9. Ne5 {[%clk 0:02:32]}  cxd4 {[%clk 0:02:55]} 10. Bxh5 {[%clk 0:02:32]}  Bxe5 {[%clk 0:02:55]} 11. Bf3 {[%clk 0:02:22]}  Nc6 {[%clk 0:02:55]} 12. Re1 {[%clk 0:02:18]}  Bg7 {[%clk 0:02:56]} 13. d3 {[%clk 0:02:13]}  Bf5 {[%clk 0:02:54]} 14. Na3 {[%clk 0:02:07]}  e5 {[%clk 0:02:51]} 15. Qd2 {[%clk 0:01:54]}  Re8 {[%clk 0:02:48]} 16. b4 {[%clk 0:01:48]}  a5 {[%clk 0:02:38]} 17. b5 {[%clk 0:01:45]}  Nb4 {[%clk 0:02:38]} 18. Bxb7 {[%clk 0:01:45]}  Nxd3 {[%clk 0:02:35]} 19. g4 {[%clk 0:00:48]}  Nxe1 {[%clk 0:02:33]} 20. gxf5 {[%clk 0:00:46]}  Ra7 {[%clk 0:02:21]} 21. Bc6 {[%clk 0:00:41]}  e4 {[%clk 0:01:57]} 22. Rxe1 {[%clk 0:00:38]}  e3 {[%clk 0:01:49]} 23. fxe3 {[%clk 0:00:36]}  Qg5+ {[%clk 0:01:37]} 24. Qg2 {[%clk 0:00:35]}  Qh4 {[%clk 0:01:37]} 25. Qg3 {[%clk 0:00:27]}  Qxg3+ {[%clk 0:01:33]} 26. hxg3 {[%clk 0:00:28]}  Ree7 {[%clk 0:01:31]} 27. b6 {[%clk 0:00:17]}  Ra6 {[%clk 0:01:19]} 28. c5 {[%clk 0:00:18]}  Kf8 {[%clk 0:01:01]} 29. Nc4 {[%clk 0:00:15]}  Rc7 {[%clk 0:00:52]} 30. Bb5 {[%clk 0:00:11]}  Raa7 {[%clk 0:00:38]} 31. exd4 {[%clk 0:00:09]}  Re7 {[%clk 0:00:37]} 32. Rxe7 {[%clk 0:00:09]}  Rxe7 {[%clk 0:00:37]} 33. c6 {[%clk 0:00:10]}  Re2 {[%clk 0:00:31]} 34. c7 {[%clk 0:00:09]} 1-0


[Site "https://www.chess.com"]

[Event "Titled Tuesday Blitz January 11 2022"]
[White "Ibrahimli, Murad"]
[Black "Korchmar, Vasiliy"]
[WhiteFideId "13410229"]
[BlackFideId "24131750"]
[WhiteElo "2109"]
[BlackElo "2370"]
[Result "1-0"]
[Round "08"]
[TimeControl "180+1"]
[Date "2022.01.11"]
[WhiteClock "0:00:19"]
[BlackClock "0:00:02"]

1. c4 {[%clk 0:03:00]}  Nf6 {[%clk 0:02:59]} 2. Nc3 {[%clk 0:02:59]}  g6 {[%clk 0:02:58]} 3. d4 {[%clk 0:02:58]}  c5 {[%clk 0:02:57]} 4. d5 {[%clk 0:02:58]}  Bg7 {[%clk 0:02:57]} 5. e4 {[%clk 0:02:58]}  d6 {[%clk 0:02:57]} 6. Nf3 {[%clk 0:02:58]}  O-O {[%clk 0:02:58]} 7. h3 {[%clk 0:02:58]}  e6 {[%clk 0:02:58]} 8. Bd3 {[%clk 0:02:57]}  exd5 {[%clk 0:02:58]} 9. exd5 {[%clk 0:02:58]}  Re8+ {[%clk 0:02:58]} 10. Be3 {[%clk 0:02:58]}  Nbd7 {[%clk 0:02:58]} 11. O-O {[%clk 0:02:57]}  Rxe3 {[%clk 0:02:59]} 12. fxe3 {[%clk 0:02:57]}  Qe7 {[%clk 0:02:59]} 13. Qd2 {[%clk 0:02:47]}  b6 {[%clk 0:02:56]} 14. Rf2 {[%clk 0:02:43]}  Ba6 {[%clk 0:02:47]} 15. Raf1 {[%clk 0:02:43]}  Nh5 {[%clk 0:02:31]} 16. Ne2 {[%clk 0:02:27]}  f5 {[%clk 0:02:21]} 17. Nf4 {[%clk 0:02:20]}  Ng3 {[%clk 0:02:11]} 18. Rc1 {[%clk 0:02:17]}  Nf6 {[%clk 0:01:56]} 19. Qe1 {[%clk 0:02:01]}  Nfe4 {[%clk 0:01:52]} 20. Bxe4 {[%clk 0:02:01]}  Nxe4 {[%clk 0:01:53]} 21. Re2 {[%clk 0:02:00]}  Bf6 {[%clk 0:01:40]} 22. Ne6 {[%clk 0:01:59]}  Bc8 {[%clk 0:01:38]} 23. Nf4 {[%clk 0:01:46]}  Bd7 {[%clk 0:01:38]} 24. g3 {[%clk 0:01:36]}  Kh8 {[%clk 0:01:33]} 25. h4 {[%clk 0:01:27]}  Rg8 {[%clk 0:01:31]} 26. Rg2 {[%clk 0:01:25]}  h6 {[%clk 0:01:27]} 27. Rcc2 {[%clk 0:01:25]}  Be8 {[%clk 0:01:23]} 28. Nd2 {[%clk 0:01:16]}  Bf7 {[%clk 0:01:11]} 29. Nxe4 {[%clk 0:01:14]}  Qxe4 {[%clk 0:01:12]} 30. Qd2 {[%clk 0:01:00]}  Kg7 {[%clk 0:00:58]} 31. Qd3 {[%clk 0:00:58]}  Qe5 {[%clk 0:00:45]} 32. Rcf2 {[%clk 0:00:52]}  Re8 {[%clk 0:00:43]} 33. Rf3 {[%clk 0:00:51]}  a6 {[%clk 0:00:35]} 34. h5 {[%clk 0:00:46]}  g5 {[%clk 0:00:33]} 35. Ne6+ {[%clk 0:00:42]}  Rxe6 {[%clk 0:00:28]} 36. dxe6 {[%clk 0:00:43]}  Bxe6 {[%clk 0:00:29]} 37. Rgf2 {[%clk 0:00:37]}  d5 {[%clk 0:00:11]} 38. cxd5 {[%clk 0:00:33]}  Bxd5 {[%clk 0:00:12]} 39. Qxf5 {[%clk 0:00:30]}  Bxf3 {[%clk 0:00:11]} 40. Qxf3 {[%clk 0:00:30]}  Qe7 {[%clk 0:00:03]} 41. b3 {[%clk 0:00:29]}  b5 {[%clk 0:00:03]} 42. Qc6 {[%clk 0:00:23]}  Be5 {[%clk 0:00:01]} 43. Qg6+ {[%clk 0:00:20]}  Kh8 {[%clk 0:00:02]} 44. Rf7 {[%clk 0:00:19]} 1-0


[Site "https://www.chess.com"]

[Event "Titled Tuesday Blitz January 11 2022"]
[White "Jones, Gawain C B"]
[Black "Martinez Ramirez, Lennis"]
[WhiteFideId "409561"]
[BlackFideId "3509079"]
[WhiteElo "2657"]
[BlackElo "2374"]
[Result "1-0"]
[Round "08"]
[TimeControl "180+1"]
[Date "2022.01.11"]
[WhiteClock "0:00:33"]
[BlackClock "0:00:18"]

1. d4 {[%clk 0:03:00]}  e6 {[%clk 0:02:59]} 2. g3 {[%clk 0:02:59]}  c5 {[%clk 0:02:57]} 3. Nf3 {[%clk 0:02:58]}  Nc6 {[%clk 0:02:54]} 4. c4 {[%clk 0:02:56]}  cxd4 {[%clk 0:02:52]} 5. Nxd4 {[%clk 0:02:57]}  Bb4+ {[%clk 0:02:52]} 6. Nc3 {[%clk 0:02:50]}  Qa5 {[%clk 0:02:50]} 7. Nb5 {[%clk 0:02:42]}  a6 {[%clk 0:02:47]} 8. Nd6+ {[%clk 0:02:40]}  Ke7 {[%clk 0:02:47]} 9. Nxc8+ {[%clk 0:02:38]}  Rxc8 {[%clk 0:02:48]} 10. Bg2 {[%clk 0:02:37]}  Ne5 {[%clk 0:02:06]} 11. O-O {[%clk 0:02:34]}  Rxc4 {[%clk 0:02:03]} 12. Bf4 {[%clk 0:02:21]}  b6 {[%clk 0:01:42]} 13. Nd5+ {[%clk 0:02:17]}  exd5 {[%clk 0:01:40]} 14. Bxe5 {[%clk 0:02:17]}  Nf6 {[%clk 0:01:39]} 15. a3 {[%clk 0:02:14]}  Bd6 {[%clk 0:01:38]} 16. b4 {[%clk 0:02:11]}  Qb5 {[%clk 0:01:36]} 17. Bxf6+ {[%clk 0:01:57]}  Kxf6 {[%clk 0:01:30]} 18. Bxd5 {[%clk 0:01:54]}  Rh4 {[%clk 0:01:24]} 19. gxh4 {[%clk 0:01:46]}  Re8 {[%clk 0:01:20]} 20. e4 {[%clk 0:01:33]}  Bf4 {[%clk 0:00:50]} 21. Qf3 {[%clk 0:01:28]}  Ke5 {[%clk 0:00:49]} 22. Qc3+ {[%clk 0:01:22]}  Kd6 {[%clk 0:00:48]} 23. Rfd1 {[%clk 0:01:10]}  Ke7 {[%clk 0:00:48]} 24. Ra2 {[%clk 0:00:51]}  g5 {[%clk 0:00:38]} 25. a4 {[%clk 0:00:50]}  Qxb4 {[%clk 0:00:19]} 26. Qxb4+ {[%clk 0:00:50]}  Bd6 {[%clk 0:00:19]} 27. Qxd6+ {[%clk 0:00:49]}  Kxd6 {[%clk 0:00:20]} 28. Bxf7+ {[%clk 0:00:49]}  Ke5 {[%clk 0:00:20]} 29. Bxe8 {[%clk 0:00:49]}  d5 {[%clk 0:00:21]} 30. Rxd5+ {[%clk 0:00:48]}  Kf4 {[%clk 0:00:21]} 31. Bc6 {[%clk 0:00:44]}  gxh4 {[%clk 0:00:21]} 32. Rf5+ {[%clk 0:00:43]}  Kg4 {[%clk 0:00:21]} 33. h3+ {[%clk 0:00:36]}  Kxh3 {[%clk 0:00:20]} 34. Rg5 {[%clk 0:00:34]}  h6 {[%clk 0:00:18]} 35. Bd7# {[%clk 0:00:33]} 1-0


[Site "https://www.chess.com"]

[Event "Titled Tuesday Blitz January 11 2022"]
[White "Kosteniuk, Alexandra"]
[Black "Jobava, Baadur"]
[WhiteFideId "4128125"]
[BlackFideId "13601520"]
[WhiteElo "2469"]
[BlackElo "2617"]
[Result "0-1"]
[Round "08"]
[TimeControl "180+1"]
[Date "2022.01.11"]
[WhiteClock "0:00:01"]
[BlackClock "0:01:13"]

1. e4 {[%clk 0:03:00]}  e6 {[%clk 0:02:59]} 2. d4 {[%clk 0:03:00]}  d5 {[%clk 0:03:00]} 3. Nc3 {[%clk 0:03:00]}  dxe4 {[%clk 0:03:01]} 4. Nxe4 {[%clk 0:02:59]}  Bd7 {[%clk 0:03:02]} 5. Nf3 {[%clk 0:02:57]}  Bc6 {[%clk 0:03:02]} 6. Bd3 {[%clk 0:02:57]}  Nd7 {[%clk 0:03:02]} 7. O-O {[%clk 0:02:56]}  Ngf6 {[%clk 0:03:02]} 8. Ng3 {[%clk 0:02:51]}  g6 {[%clk 0:03:02]} 9. a4 {[%clk 0:02:48]}  Bg7 {[%clk 0:03:02]} 10. b4 {[%clk 0:02:46]}  O-O {[%clk 0:03:00]} 11. b5 {[%clk 0:02:45]}  Bxf3 {[%clk 0:03:00]} 12. Qxf3 {[%clk 0:02:45]}  c5 {[%clk 0:02:49]} 13. bxc6 {[%clk 0:02:30]}  bxc6 {[%clk 0:02:49]} 14. Qxc6 {[%clk 0:02:27]}  Rc8 {[%clk 0:02:50]} 15. Qd6 {[%clk 0:02:24]}  Nd5 {[%clk 0:02:45]} 16. Ne2 {[%clk 0:02:18]}  N7b6 {[%clk 0:02:41]} 17. Ba3 {[%clk 0:02:07]}  Nc4 {[%clk 0:02:41]} 18. Bxc4 {[%clk 0:01:52]}  Rxc4 {[%clk 0:02:41]} 19. Qa6 {[%clk 0:01:51]}  Qc8 {[%clk 0:02:36]} 20. Qxa7 {[%clk 0:01:48]}  Rd8 {[%clk 0:02:35]} 21. Bc5 {[%clk 0:01:38]}  Rxc2 {[%clk 0:02:35]} 22. Rfe1 {[%clk 0:01:32]}  Qc6 {[%clk 0:02:23]} 23. Qa5 {[%clk 0:01:22]}  Rb8 {[%clk 0:02:17]} 24. Rab1 {[%clk 0:00:57]}  Rxb1 {[%clk 0:01:56]} 25. Rxb1 {[%clk 0:00:57]}  h5 {[%clk 0:01:56]} 26. Qe1 {[%clk 0:00:50]}  Qxa4 {[%clk 0:01:48]} 27. Qd1 {[%clk 0:00:46]}  Qc4 {[%clk 0:01:47]} 28. Rc1 {[%clk 0:00:42]}  Rxc1 {[%clk 0:01:45]} 29. Nxc1 {[%clk 0:00:42]}  e5 {[%clk 0:01:42]} 30. Ne2 {[%clk 0:00:35]}  exd4 {[%clk 0:01:41]} 31. Bd6 {[%clk 0:00:11]}  d3 {[%clk 0:01:39]} 32. Ng3 {[%clk 0:00:07]}  Nc3 {[%clk 0:01:39]} 33. Qe1 {[%clk 0:00:08]}  Ne2+ {[%clk 0:01:39]} 34. Nxe2 {[%clk 0:00:07]}  dxe2 {[%clk 0:01:39]} 35. Bb4 {[%clk 0:00:05]}  Qd3 {[%clk 0:01:39]} 36. g3 {[%clk 0:00:05]}  Qe4 {[%clk 0:01:27]} 37. Bd2 {[%clk 0:00:03]}  Bd4 {[%clk 0:01:26]} 38. Qc1 {[%clk 0:00:01]}  Kh7 {[%clk 0:01:24]} 39. Be1 {[%clk 0:00:01]}  Qd3 {[%clk 0:01:23]} 40. Qf4 {[%clk 0:00:01]}  Qd1 {[%clk 0:01:13]} 41. Qxf7+ {[%clk 0:00:01]}  Bg7 {[%clk 0:01:13]} 0-1


[Site "https://www.chess.com"]

[Event "Titled Tuesday Blitz January 11 2022"]
[White "Kravtsiv, Martyn"]
[Black "Sanal, Vahap"]
[WhiteFideId "14113147"]
[BlackFideId "6300545"]
[WhiteElo "2694"]
[BlackElo "2603"]
[Result "1-0"]
[Round "08"]
[TimeControl "180+1"]
[Date "2022.01.11"]
[WhiteClock "0:01:25"]
[BlackClock "0:01:20"]

1. e4 {[%clk 0:03:00]}  e5 {[%clk 0:03:00]} 2. Nf3 {[%clk 0:03:00]}  Nc6 {[%clk 0:03:01]} 3. Nc3 {[%clk 0:03:00]}  Nf6 {[%clk 0:03:01]} 4. a4 {[%clk 0:03:00]}  d5 {[%clk 0:02:59]} 5. exd5 {[%clk 0:02:59]}  Nxd5 {[%clk 0:03:00]} 6. Bb5 {[%clk 0:02:59]}  Nxc3 {[%clk 0:02:59]} 7. bxc3 {[%clk 0:02:58]}  Bd6 {[%clk 0:03:00]} 8. O-O {[%clk 0:02:58]}  O-O {[%clk 0:03:00]} 9. d4 {[%clk 0:02:58]}  exd4 {[%clk 0:02:59]} 10. cxd4 {[%clk 0:02:58]}  h6 {[%clk 0:03:00]} 11. c3 {[%clk 0:02:57]}  Qf6 {[%clk 0:02:59]} 12. a5 {[%clk 0:02:53]}  Ne7 {[%clk 0:02:54]} 13. Bd3 {[%clk 0:02:47]}  Bf5 {[%clk 0:02:52]} 14. c4 {[%clk 0:02:31]}  Rad8 {[%clk 0:02:43]} 15. Bb2 {[%clk 0:02:27]}  Bxd3 {[%clk 0:02:22]} 16. Qxd3 {[%clk 0:02:26]}  Ng6 {[%clk 0:02:23]} 17. g3 {[%clk 0:02:22]}  c5 {[%clk 0:02:15]} 18. a6 {[%clk 0:02:17]}  b6 {[%clk 0:02:12]} 19. Rad1 {[%clk 0:02:13]}  Bb8 {[%clk 0:02:10]} 20. Rfe1 {[%clk 0:02:09]}  cxd4 {[%clk 0:01:58]} 21. Bxd4 {[%clk 0:02:07]}  Qc6 {[%clk 0:01:58]} 22. Qc3 {[%clk 0:02:01]}  f6 {[%clk 0:01:56]} 23. Rd3 {[%clk 0:01:54]}  Rfe8 {[%clk 0:01:52]} 24. Rxe8+ {[%clk 0:01:49]}  Rxe8 {[%clk 0:01:53]} 25. Re3 {[%clk 0:01:49]}  Rc8 {[%clk 0:01:44]} 26. Qd3 {[%clk 0:01:47]}  Nf8 {[%clk 0:01:39]} 27. Qf5 {[%clk 0:01:31]}  Qxc4 {[%clk 0:01:35]} 28. Re7 {[%clk 0:01:30]}  Rd8 {[%clk 0:01:20]} 29. Rxg7+ {[%clk 0:01:25]} 1-0


[Site "https://www.chess.com"]

[Event "Titled Tuesday Blitz January 11 2022"]
[White "Leitao, Rafael"]
[Black "Al-Tarboush, Ward"]
[WhiteFideId "2101246"]
[BlackFideId "7601450"]
[WhiteElo "2609"]
[BlackElo "2276"]
[Result "1-0"]
[Round "08"]
[TimeControl "180+1"]
[Date "2022.01.11"]
[WhiteClock "0:00:40"]
[BlackClock "0:00:55"]

1. c4 {[%clk 0:03:00]}  b6 {[%clk 0:03:00]} 2. Nc3 {[%clk 0:02:59]}  Bb7 {[%clk 0:03:01]} 3. e4 {[%clk 0:02:59]}  c5 {[%clk 0:02:57]} 4. Nf3 {[%clk 0:02:57]}  Nc6 {[%clk 0:02:57]} 5. d4 {[%clk 0:02:56]}  cxd4 {[%clk 0:02:57]} 6. Nxd4 {[%clk 0:02:57]}  Nf6 {[%clk 0:02:57]} 7. Be2 {[%clk 0:02:49]}  e6 {[%clk 0:02:57]} 8. Ndb5 {[%clk 0:02:48]}  Bc5 {[%clk 0:02:54]} 9. Nd6+ {[%clk 0:02:46]}  Bxd6 {[%clk 0:02:54]} 10. Qxd6 {[%clk 0:02:47]}  Qe7 {[%clk 0:02:53]} 11. Bf4 {[%clk 0:02:46]}  O-O {[%clk 0:02:52]} 12. Qxe7 {[%clk 0:02:35]}  Nxe7 {[%clk 0:02:52]} 13. Bd6 {[%clk 0:02:36]}  Rfe8 {[%clk 0:02:52]} 14. f3 {[%clk 0:02:36]}  Nc8 {[%clk 0:02:51]} 15. Bg3 {[%clk 0:02:32]}  d5 {[%clk 0:02:50]} 16. exd5 {[%clk 0:02:32]}  exd5 {[%clk 0:02:50]} 17. Kf2 {[%clk 0:02:26]}  Ne7 {[%clk 0:02:47]} 18. Nb5 {[%clk 0:02:23]}  Red8 {[%clk 0:02:31]} 19. Rhd1 {[%clk 0:02:12]}  Nf5 {[%clk 0:02:21]} 20. Be5 {[%clk 0:02:06]}  a6 {[%clk 0:02:04]} 21. Nc7 {[%clk 0:02:04]}  Rac8 {[%clk 0:02:02]} 22. cxd5 {[%clk 0:01:18]}  Nxd5 {[%clk 0:01:55]} 23. Nxd5 {[%clk 0:01:18]}  Rxd5 {[%clk 0:01:51]} 24. Rxd5 {[%clk 0:01:16]}  Bxd5 {[%clk 0:01:51]} 25. g4 {[%clk 0:01:04]}  f6 {[%clk 0:01:48]} 26. Bc3 {[%clk 0:01:04]}  Nh4 {[%clk 0:01:44]} 27. Kg3 {[%clk 0:01:02]}  Re8 {[%clk 0:01:44]} 28. Re1 {[%clk 0:00:52]}  Ng6 {[%clk 0:01:24]} 29. Bc4 {[%clk 0:00:42]}  Rd8 {[%clk 0:01:24]} 30. Rd1 {[%clk 0:00:42]}  Ne7 {[%clk 0:01:23]} 31. Bb4 {[%clk 0:00:42]}  b5 {[%clk 0:00:55]} 32. Bxe7 {[%clk 0:00:40]} 1-0


[Site "https://www.chess.com"]

[Event "Titled Tuesday Blitz January 11 2022"]
[White "Leiva, Gianmarco"]
[Black "Real De Azua, Ernesto"]
[WhiteFideId "3804399"]
[BlackFideId "108154"]
[WhiteElo "2328"]
[BlackElo "2476"]
[Result "1-0"]
[Round "08"]
[TimeControl "180+1"]
[Date "2022.01.11"]
[WhiteClock "0:00:07"]
[BlackClock "0:00:03"]

1. e4 {[%clk 0:03:00]}  e5 {[%clk 0:02:57]} 2. Nf3 {[%clk 0:03:00]}  Nc6 {[%clk 0:02:57]} 3. Bc4 {[%clk 0:03:00]}  Nf6 {[%clk 0:02:55]} 4. d3 {[%clk 0:03:01]}  Bc5 {[%clk 0:02:53]} 5. O-O {[%clk 0:03:00]}  d6 {[%clk 0:02:52]} 6. c3 {[%clk 0:03:01]}  a5 {[%clk 0:02:50]} 7. Re1 {[%clk 0:02:58]}  O-O {[%clk 0:02:47]} 8. h3 {[%clk 0:02:57]}  h6 {[%clk 0:02:42]} 9. Nbd2 {[%clk 0:02:56]}  Be6 {[%clk 0:02:39]} 10. Bb5 {[%clk 0:02:52]}  Ba7 {[%clk 0:02:25]} 11. Nf1 {[%clk 0:02:51]}  Ne7 {[%clk 0:02:24]} 12. Ng3 {[%clk 0:02:39]}  Ng6 {[%clk 0:02:16]} 13. d4 {[%clk 0:02:37]}  exd4 {[%clk 0:02:11]} 14. cxd4 {[%clk 0:02:37]}  d5 {[%clk 0:02:12]} 15. e5 {[%clk 0:02:31]}  Ne4 {[%clk 0:02:12]} 16. Bd3 {[%clk 0:01:52]}  c5 {[%clk 0:02:06]} 17. Nxe4 {[%clk 0:01:48]}  dxe4 {[%clk 0:02:05]} 18. Bxe4 {[%clk 0:01:49]}  cxd4 {[%clk 0:02:03]} 19. Bxb7 {[%clk 0:01:49]}  Rb8 {[%clk 0:01:56]} 20. Be4 {[%clk 0:01:49]}  Qd7 {[%clk 0:01:51]} 21. b3 {[%clk 0:01:45]}  Rfd8 {[%clk 0:01:49]} 22. Ba3 {[%clk 0:01:42]}  d3 {[%clk 0:00:57]} 23. Bd6 {[%clk 0:01:39]}  Nf4 {[%clk 0:00:57]} 24. Bxb8 {[%clk 0:00:12]}  Rxb8 {[%clk 0:00:56]} 25. Qd2 {[%clk 0:00:11]}  g5 {[%clk 0:00:55]} 26. Re3 {[%clk 0:00:10]}  Rc8 {[%clk 0:00:33]} 27. Rxd3 {[%clk 0:00:05]}  Nxd3 {[%clk 0:00:32]} 28. Qxd3 {[%clk 0:00:06]}  Qe7 {[%clk 0:00:30]} 29. Rd1 {[%clk 0:00:04]}  Qb4 {[%clk 0:00:28]} 30. Bh7+ {[%clk 0:00:03]}  Kg7 {[%clk 0:00:28]} 31. Bf5 {[%clk 0:00:04]}  Qc5 {[%clk 0:00:26]} 32. Bxe6 {[%clk 0:00:03]}  fxe6 {[%clk 0:00:21]} 33. Qd7+ {[%clk 0:00:04]}  Kf8 {[%clk 0:00:21]} 34. Qxe6 {[%clk 0:00:04]}  Qxf2+ {[%clk 0:00:16]} 35. Kh1 {[%clk 0:00:04]}  Qc2 {[%clk 0:00:10]} 36. Qf6+ {[%clk 0:00:04]}  Kg8 {[%clk 0:00:09]} 37. Rf1 {[%clk 0:00:03]}  Rf8 {[%clk 0:00:05]} 38. Qxh6 {[%clk 0:00:03]}  Be3 {[%clk 0:00:05]} 39. Qh5 {[%clk 0:00:03]}  Qf5 {[%clk 0:00:04]} 40. Qg4 {[%clk 0:00:02]}  Qd3 {[%clk 0:00:03]} 41. Re1 {[%clk 0:00:01]}  Bf4 {[%clk 0:00:02]} 42. Qe6+ {[%clk 0:00:02]}  Kg7 {[%clk 0:00:02]} 43. Qc4 {[%clk 0:00:02]}  Qf5 {[%clk 0:00:02]} 44. Qe4 {[%clk 0:00:02]}  Qe6 {[%clk 0:00:01]} 45. Qb7+ {[%clk 0:00:02]}  Rf7 {[%clk 0:00:02]} 46. Qe4 {[%clk 0:00:02]}  Bg3 {[%clk 0:00:02]} 47. Rd1 {[%clk 0:00:02]}  Bf4 {[%clk 0:00:02]} 48. Rd6 {[%clk 0:00:02]}  Qxe5 {[%clk 0:00:03]} 49. Qg6+ {[%clk 0:00:02]}  Kf8 {[%clk 0:00:02]} 50. Re6 {[%clk 0:00:03]}  Qa1+ {[%clk 0:00:02]} 51. Re1 {[%clk 0:00:03]}  Qf6 {[%clk 0:00:02]} 52. Qxf6 {[%clk 0:00:03]}  Rxf6 {[%clk 0:00:03]} 53. Rd1 {[%clk 0:00:03]}  Re6 {[%clk 0:00:03]} 54. h4 {[%clk 0:00:02]}  g4 {[%clk 0:00:03]} 55. Nh2 {[%clk 0:00:02]}  Kg7 {[%clk 0:00:03]} 56. Nxg4 {[%clk 0:00:02]}  Re2 {[%clk 0:00:03]} 57. Kg1 {[%clk 0:00:02]}  Rxa2 {[%clk 0:00:03]} 58. Kf1 {[%clk 0:00:02]}  Rb2 {[%clk 0:00:03]} 59. Nf2 {[%clk 0:00:02]}  Rxb3 {[%clk 0:00:03]} 60. Nd3 {[%clk 0:00:02]}  Be3 {[%clk 0:00:03]} 61. Ke2 {[%clk 0:00:03]}  Bd4 {[%clk 0:00:04]} 62. Rc1 {[%clk 0:00:02]}  a4 {[%clk 0:00:04]} 63. Rc4 {[%clk 0:00:03]}  Bf6 {[%clk 0:00:01]} 64. Rxa4 {[%clk 0:00:03]}  Rc3 {[%clk 0:00:01]} 65. Ra7+ {[%clk 0:00:03]}  Kg6 {[%clk 0:00:02]} 66. Ra6 {[%clk 0:00:04]}  Rc2+ {[%clk 0:00:02]} 67. Kf3 {[%clk 0:00:04]}  Rc3 {[%clk 0:00:02]} 68. Ke4 {[%clk 0:00:05]}  Kg7 {[%clk 0:00:03]} 69. g4 {[%clk 0:00:05]}  Rc4+ {[%clk 0:00:03]} 70. Kf3 {[%clk 0:00:06]}  Bxh4 {[%clk 0:00:03]} 71. Ra7+ {[%clk 0:00:05]}  Kg6 {[%clk 0:00:03]} 72. Ne5+ {[%clk 0:00:06]}  Kf6 {[%clk 0:00:03]} 73. Nxc4 {[%clk 0:00:07]} 1-0


[Site "https://www.chess.com"]